{"text_format":"1","workbook":"xlsx","n_sheets":1,"sheets":["BLANK PRICE fcx_tw_20_03"],"not_rendered":{"charts":0,"images":0,"macros":1,"external_links":0,"defined_names":0,"comments":0,"pivot_tables":0},"unopened":[],"bounds":{"document_bytes":16777216,"sheet_cells":100000,"rows_first":2000,"rows_last":500,"rows_between":2000,"halvings":0,"cell_chars":16384,"cell_head_chars":4096},"cells_cut":0,"cells_raw":0,"read":"whole","date_system":"1900"}

{"sheet":"BLANK PRICE fcx_tw_20_03","index":0,"n_rows":21,"n_cols":9,"rows_kept":21,"cut":false,"hidden":false,"merged":[[15,1,15,8],[16,1,16,8],[17,1,17,8],[0,0,0,8],[1,0,1,8],[2,0,2,8],[3,0,3,8],[4,0,4,2],[4,4,4,8],[13,3,13,8]]}
["    BHARAT HEAVY ELECTRICAL LIMITED , JHANSI              "]
["FACTORY CIVIL DEPARTMENT"]
["BLANK  PRICE BID"]
["Name of work -Misc. Fabrication work inside factory area"]
["Tender Enq No-FCX/TW/21/03",null,null,null,"Date- "]
[]
["Sl. No.","Description of Work","% Allocation (Item-wise)","Unit ","Quantity ","Raate  ","Amount\nRs","Rate per Unit (in Rs.)","Amount (in Rs.)"]
[1,"Fabrication of steel structure from basic sections like angles, channels, plates, wire mesh etc. All consumable materials will be provided by BHEL free of cost except welding machine, which will be issued on chargeable basis. (Contractor can bring their own welding machine)",{"$f":"G8/471396.45","v":0.34685454249814568},"Kg",20000,8.1753,{"$f":"E8*F8","v":163506},{"$f":"I8/E8","v":0},{"$f":"C8*$I$13","v":0}]
[2,"Modification/alternation of existing structures like columns, trusses, perlins girders etc. Payment to be made by measuring total weight of final structure produced on ground. (All consumable materials will be provided by BHEL free of cost except welding machine which will be issued on chargeable basis. ( Contractor can bring their own welding machine)",{"$f":"G9/471396.45","v":0.13317771060855466},"Kg",10000,6.2779500000000006,{"$f":"E9*F9","v":62779.500000000007},{"$f":"I9/E9","v":0},{"$f":"C9*$I$13","v":0}]
[3,"Fabrication of steel structure at height including jacketing /strengthening /taking out brackets. All works to be done with structure in actual erected condition. All consumable materials will be provided by BHEL free of cost except welding machine which will ne issued on chargeable basisi. (Contractor can bring their own welding machine)",0.19569483393436671,"Kg",11000,8.3863500000000002,{"$f":"E10*F10","v":92249.85},0,{"$f":"C10*$I$13","v":0}]
[4,"Erection of steel structure including primer & painting two coats of approved colour paint. All Consumable materials will be provided by BHEL free of cost.",0.27780883797491474,"Kg",26000,5.0368500000000003,{"$f":"E11*F11","v":130958.1},0,{"$f":"C11*$I$13","v":0}]
[5,"Dismantling steel work in built up sections in angles, tees, flats and channels including all gusset plates, bolts, nuts, cutting rivets, welding etc. including dismembering and stacking within 50 metres lead.",4.6464074984018229E-2,"Kg",10000,2.1903000000000001,{"$f":"E12*F12","v":21903},{"$f":"I12/E12","v":0},{"$f":"C12*$I$13","v":0}]
[null,"Total",{"$f":"SUM(C8:C12)","v":1},null,null,null,{"$f":"SUM(G8:G12)","v":471396.44999999995}]
[null,"IN WORDS",null,{"$f":"rup(I13)","v":0}]
[null,"Note -GST extra as applicable"]
[null,"1. Bidder has to quote in above unlocked cell only. Item rate shall be calculated automatically. Calculated item rates upto four decimal points may be adjusted w.r.t. gross total amount and it shall be the itemwise final rate for  execution of contract and all other purposes."]
[null,"2. Quoted gross total amount should be considered only if quoted in this excel sheet and print out of this should only be considered for evaluation.  If Price is quoted in any other format other than the Excel Sheet enclosed to the NIT , the offer of the bidder  will be rejected"]
[null,"3.During the execution , the quantity of various items may vary to any extent depending on requirement of work/site and as per discretion of BHEL."]
[]
[null,null,null,null,null,"Prepared by "]
[null,null,null,"(Signature and Seal of  Contractor  )"]